[Event "*** SCC Grand Prix: Titled Tuesday Blitz"]
[Site "Chess.com"]
[Date "2020.06.09"]
[Round "3"]
[White "Kapibara_Warri0r"]
[Black "kuba2006"]
[Result "1-0"]
[WhiteElo "2127"]
[BlackElo "2334"]
[TimeControl "180+1"]
[EndTime "9:29:10 PDT"]
[Termination "Kapibara_Warri0r won by resignation"]

1. e4 {[%clk 0:03:00.9]} 1... Nf6 {[%clk 0:03:00.9]} 2. e5 {[%clk 0:03:00.7]}
2... Nd5 {[%clk 0:03:00.5]} 3. c4 {[%clk 0:03:01.1]} 3... Nb6 {[%clk 0:03:00.2]}
4. d4 {[%clk 0:03:01.6]} 4... d6 {[%clk 0:03:00]} 5. exd6 {[%clk 0:03:01.7]}
5... exd6 {[%clk 0:03:00.9]} 6. Nc3 {[%clk 0:02:57.1]} 6... Be7 {[%clk
0:03:01.4]} 7. Bd3 {[%clk 0:02:56.8]} 7... Nc6 {[%clk 0:02:59]} 8. Nge2 {[%clk
0:02:56.7]} 8... O-O {[%clk 0:02:58.9]} 9. O-O {[%clk 0:02:56]} 9... Bf6 {[%clk
0:02:59.1]} 10. Be3 {[%clk 0:02:54.9]} 10... Bg4 {[%clk 0:02:33.3]} 11. f3
{[%clk 0:02:54.1]} 11... Re8 {[%clk 0:02:30.2]} 12. Bf2 {[%clk 0:02:50.8]} 12...
Bh5 {[%clk 0:02:23.6]} 13. Ne4 {[%clk 0:02:37.8]} 13... d5 {[%clk 0:01:56.8]}
14. Nxf6+ {[%clk 0:02:24.9]} 14... Qxf6 {[%clk 0:01:57.7]} 15. c5 {[%clk
0:02:21.7]} 15... Nc8 {[%clk 0:01:05.3]} 16. a3 {[%clk 0:02:06.1]} 16... a5
{[%clk 0:01:03.6]} 17. Rb1 {[%clk 0:01:51.7]} 17... N8e7 {[%clk 0:00:46.2]} 18.
b4 {[%clk 0:01:40.8]} 18... axb4 {[%clk 0:00:47.1]} 19. axb4 {[%clk 0:01:41]}
19... Bg6 {[%clk 0:00:43.6]} 20. b5 {[%clk 0:01:35.5]} 20... Na5 {[%clk
0:00:41.7]} 21. Bg3 {[%clk 0:01:08.7]} 21... Bxd3 {[%clk 0:00:17.2]} 22. Qxd3
{[%clk 0:01:09.6]} 22... c6 {[%clk 0:00:16.1]} 23. Be5 {[%clk 0:01:03]} 23...
Qg6 {[%clk 0:00:08.2]} 24. Qc3 {[%clk 0:00:47.7]} 24... f6 {[%clk 0:00:04.8]}
25. Nf4 {[%clk 0:00:44.1]} 25... Qf5 {[%clk 0:00:04.4]} 26. Bd6 {[%clk
0:00:29.7]} 26... Nc4 {[%clk 0:00:03.5]} 27. Nh3 {[%clk 0:00:22.9]} 27... Ng6
{[%clk 0:00:02.4]} 28. Bg3 {[%clk 0:00:21.7]} 28... Qe6 {[%clk 0:00:02.2]} 29.
Rfe1 {[%clk 0:00:20.6]} 29... Qd7 {[%clk 0:00:02.4]} 30. Rxe8+ {[%clk
0:00:19.8]} 30... Rxe8 {[%clk 0:00:03.3]} 31. bxc6 {[%clk 0:00:19.2]} 31... bxc6
{[%clk 0:00:04.2]} 32. Nf4 {[%clk 0:00:17]} 32... Re3 {[%clk 0:00:03.6]} 33. Qb4
{[%clk 0:00:14.6]} 33... Nxf4 {[%clk 0:00:03.6]} 34. Bxf4 {[%clk 0:00:15.5]}
34... Re2 {[%clk 0:00:03.3]} 35. Qb8+ {[%clk 0:00:15]} 35... Kf7 {[%clk
0:00:03.6]} 36. Rb7 {[%clk 0:00:14.8]} 36... Re1+ {[%clk 0:00:03]} 37. Kf2
{[%clk 0:00:14.1]} 37... Re7 {[%clk 0:00:02.6]} 38. Rxd7 {[%clk 0:00:13.8]}
38... Rxd7 {[%clk 0:00:03.5]} 39. Qc8 {[%clk 0:00:13.7]} 39... Ra7 {[%clk
0:00:03.6]} 40. Qxc6 {[%clk 0:00:13.4]} 40... Ra2+ {[%clk 0:00:04]} 41. Kg3
{[%clk 0:00:13.5]} 41... Re2 {[%clk 0:00:02.8]} 42. Qxd5+ {[%clk 0:00:13.5]} 1-0

[Event "*** SCC Grand Prix: Titled Tuesday Blitz"]
[Site "Chess.com"]
[Date "2020.06.09"]
[Round "3"]
[White "DishonorOnYourCow"]
[Black "temus_galaktionov"]
[Result "0-1"]
[WhiteElo "2288"]
[BlackElo "2711"]
[TimeControl "180+1"]
[EndTime "9:29:11 PDT"]
[Termination "temus_galaktionov won on time"]

1. d4 {[%clk 0:03:00.9]} 1... c6 {[%clk 0:01:56.4]} 2. c4 {[%clk 0:02:59.8]}
2... g6 {[%clk 0:01:57.3]} 3. Nc3 {[%clk 0:02:58]} 3... Bg7 {[%clk 0:01:58.2]}
4. e4 {[%clk 0:02:58]} 4... d6 {[%clk 0:01:59.1]} 5. f4 {[%clk 0:02:57.6]} 5...
Nd7 {[%clk 0:02:00]} 6. Nf3 {[%clk 0:02:57.5]} 6... e5 {[%clk 0:02:00.9]} 7.
fxe5 {[%clk 0:02:57.5]} 7... dxe5 {[%clk 0:02:01.8]} 8. d5 {[%clk 0:02:58]} 8...
Ngf6 {[%clk 0:02:02.2]} 9. Be2 {[%clk 0:02:57.6]} 9... O-O {[%clk 0:02:02.3]}
10. O-O {[%clk 0:02:57.2]} 10... Qe7 {[%clk 0:02:02.4]} 11. Kh1 {[%clk
0:02:56.2]} 11... cxd5 {[%clk 0:02:02]} 12. cxd5 {[%clk 0:02:54]} 12... h6
{[%clk 0:02:02.4]} 13. d6 {[%clk 0:02:40.4]} 13... Qd8 {[%clk 0:01:58.2]} 14.
Be3 {[%clk 0:02:29.5]} 14... a6 {[%clk 0:01:57.6]} 15. Qb3 {[%clk 0:02:22.7]}
15... Qa5 {[%clk 0:01:46]} 16. a4 {[%clk 0:02:19.3]} 16... Nc5 {[%clk
0:01:43.7]} 17. Qc4 {[%clk 0:02:12.6]} 17... Ne6 {[%clk 0:01:39.7]} 18. b4
{[%clk 0:02:10.4]} 18... Qd8 {[%clk 0:01:39]} 19. Rad1 {[%clk 0:02:05.2]} 19...
Bd7 {[%clk 0:01:33.5]} 20. Nxe5 {[%clk 0:02:01]} 20... Rc8 {[%clk 0:01:33.3]}
21. Qb3 {[%clk 0:01:43]} 21... Nxe4 {[%clk 0:01:31.6]} 22. Nxe4 {[%clk
0:01:37.8]} 22... Bxe5 {[%clk 0:01:30.7]} 23. Bf2 {[%clk 0:01:04.8]} 23... Nf4
{[%clk 0:01:17.1]} 24. Bf3 {[%clk 0:00:54.5]} 24... Be6 {[%clk 0:01:15.1]} 25.
Qe3 {[%clk 0:00:51.9]} 25... Nd5 {[%clk 0:01:13.6]} 26. Qxh6 {[%clk 0:00:50.9]}
26... Bg7 {[%clk 0:01:13.1]} 27. Qd2 {[%clk 0:00:47.3]} 27... Rc4 {[%clk
0:01:07.9]} 28. Ng5 {[%clk 0:00:43.2]} 28... Nc3 {[%clk 0:01:05]} 29. Nxe6
{[%clk 0:00:42]} 29... fxe6 {[%clk 0:01:05.9]} 30. Rde1 {[%clk 0:00:35.6]} 30...
Qd7 {[%clk 0:00:56.5]} 31. Qd3 {[%clk 0:00:35.4]} 31... Rxb4 {[%clk 0:00:52.5]}
32. Qxg6 {[%clk 0:00:31.1]} 32... Rf6 {[%clk 0:00:52.3]} 33. Qg5 {[%clk
0:00:26.4]} 33... Qxd6 {[%clk 0:00:49.6]} 34. Bc5 {[%clk 0:00:25.9]} 34... Qf4
{[%clk 0:00:46.5]} 35. Qxf4 {[%clk 0:00:14.8]} 35... Rbxf4 {[%clk 0:00:47.4]}
36. Be3 {[%clk 0:00:11.8]} 36... R4f5 {[%clk 0:00:46.8]} 37. Rg1 {[%clk
0:00:10.4]} 37... Rf7 {[%clk 0:00:43.7]} 38. a5 {[%clk 0:00:08.6]} 38... Rxa5
{[%clk 0:00:42.7]} 39. Bg4 {[%clk 0:00:09]} 39... Re5 {[%clk 0:00:40.7]} 40. Bd2
{[%clk 0:00:06.7]} 40... Rxe1 {[%clk 0:00:39.5]} 41. Rxe1 {[%clk 0:00:07.6]}
41... Kh8 {[%clk 0:00:37.7]} 42. Bxe6 {[%clk 0:00:07.6]} 42... Rf2 {[%clk
0:00:37.5]} 43. Be3 {[%clk 0:00:06.7]} 43... Rc2 {[%clk 0:00:36.3]} 44. h3
{[%clk 0:00:06.3]} 44... a5 {[%clk 0:00:36.3]} 45. Bb3 {[%clk 0:00:04]} 45...
Rb2 {[%clk 0:00:35]} 46. Bc4 {[%clk 0:00:04.3]} 46... b5 {[%clk 0:00:33.5]} 47.
Bf7 {[%clk 0:00:04.5]} 47... a4 {[%clk 0:00:32.8]} 48. Bc5 {[%clk 0:00:04.7]}
48... Rb1 {[%clk 0:00:30.8]} 49. Rxb1 {[%clk 0:00:02.7]} 49... Nxb1 {[%clk
0:00:31.7]} 50. Be8 {[%clk 0:00:02.8]} 50... a3 {[%clk 0:00:30.4]} 0-1

[Event "*** SCC Grand Prix: Titled Tuesday Blitz"]
[Site "Chess.com"]
[Date "2020.06.09"]
[Round "3"]
[White "VladimirBugayev"]
[Black "SilviusTiberius"]
[Result "0-1"]
[WhiteElo "2262"]
[BlackElo "2467"]
[TimeControl "180+1"]
[EndTime "9:29:11 PDT"]
[Termination "SilviusTiberius won on time"]

1. e4 {[%clk 0:03:00.9]} 1... e5 {[%clk 0:02:59.6]} 2. Nf3 {[%clk 0:03:00.3]}
2... Nc6 {[%clk 0:03:00]} 3. Nc3 {[%clk 0:03:00.2]} 3... Nf6 {[%clk 0:02:59.4]}
4. d4 {[%clk 0:03:00.6]} 4... exd4 {[%clk 0:03:00.3]} 5. Nxd4 {[%clk 0:03:00.3]}
5... Bb4 {[%clk 0:03:00.8]} 6. Nxc6 {[%clk 0:03:00.3]} 6... bxc6 {[%clk
0:03:01.2]} 7. Bd3 {[%clk 0:03:00.4]} 7... d5 {[%clk 0:03:01.1]} 8. exd5 {[%clk
0:03:00.5]} 8... O-O {[%clk 0:03:01.3]} 9. O-O {[%clk 0:02:59.7]} 9... cxd5
{[%clk 0:03:01.5]} 10. h3 {[%clk 0:02:59.8]} 10... c6 {[%clk 0:03:00.4]} 11. Qf3
{[%clk 0:02:59.5]} 11... Re8 {[%clk 0:03:00.6]} 12. Bg5 {[%clk 0:02:56.4]} 12...
h6 {[%clk 0:02:59.9]} 13. Bf4 {[%clk 0:02:55.8]} 13... Bd6 {[%clk 0:02:56.8]}
14. Rfe1 {[%clk 0:02:55.4]} 14... Be6 {[%clk 0:02:55.3]} 15. Na4 {[%clk
0:02:39.3]} 15... Rb8 {[%clk 0:02:53.8]} 16. b3 {[%clk 0:02:36]} 16... Rb4
{[%clk 0:02:50.1]} 17. Bxd6 {[%clk 0:02:29]} 17... Qxd6 {[%clk 0:02:51]} 18.
Rad1 {[%clk 0:02:02.7]} 18... Rf4 {[%clk 0:02:31.7]} 19. Qe3 {[%clk 0:01:56.3]}
19... d4 {[%clk 0:02:29.7]} 20. Qe5 {[%clk 0:01:48.6]} 20... Qxe5 {[%clk
0:02:10.4]} 21. Rxe5 {[%clk 0:01:48.3]} 21... Bd5 {[%clk 0:01:59.7]} 22. Rxe8+
{[%clk 0:01:38]} 22... Nxe8 {[%clk 0:02:00.1]} 23. Re1 {[%clk 0:01:37.6]} 23...
Kf8 {[%clk 0:01:59.7]} 24. Nc5 {[%clk 0:01:35.8]} 24... Nf6 {[%clk 0:01:43]} 25.
Re5 {[%clk 0:01:17]} 25... g5 {[%clk 0:01:33.7]} 26. f3 {[%clk 0:01:00.5]} 26...
Nh5 {[%clk 0:00:55.7]} 27. Kf2 {[%clk 0:00:55.5]} 27... a5 {[%clk 0:00:34.6]}
28. Be2 {[%clk 0:00:48.5]} 28... Kg7 {[%clk 0:00:32.5]} 29. Nb7 {[%clk
0:00:33.8]} 29... Rf6 {[%clk 0:00:29.4]} 30. Nxa5 {[%clk 0:00:31.1]} 30... Nf4
{[%clk 0:00:29.8]} 31. Bc4 {[%clk 0:00:29]} 31... Bxc4 {[%clk 0:00:22.4]} 32.
Nxc4 {[%clk 0:00:28.3]} 32... d3 {[%clk 0:00:23.3]} 33. Re1 {[%clk 0:00:13.4]}
33... dxc2 {[%clk 0:00:22.6]} 34. Kf1 {[%clk 0:00:11.6]} 34... Nd3 {[%clk
0:00:22.1]} 35. Ra1 {[%clk 0:00:03.7]} 35... c1=Q+ {[%clk 0:00:20.1]} 36. Rxc1
{[%clk 0:00:04.3]} 36... Nxc1 {[%clk 0:00:20.8]} 37. Ke1 {[%clk 0:00:04.4]}
37... Nxa2 {[%clk 0:00:20.1]} 38. Kd2 {[%clk 0:00:04.2]} 38... c5 {[%clk
0:00:20]} 39. Kc2 {[%clk 0:00:04]} 39... Nb4+ {[%clk 0:00:19.8]} 40. Kc3 {[%clk
0:00:03.8]} 40... Re6 {[%clk 0:00:20.4]} 41. Nd2 {[%clk 0:00:02.7]} 41... Re3+
{[%clk 0:00:19.8]} 42. Kc4 {[%clk 0:00:02.6]} 42... Rd3 {[%clk 0:00:17.8]} 43.
Ne4 {[%clk 0:00:02]} 43... Rd4+ {[%clk 0:00:14.7]} 44. Kxc5 {[%clk 0:00:01.5]}
44... Rxe4 {[%clk 0:00:15.3]} 0-1

[Event "*** SCC Grand Prix: Titled Tuesday Blitz"]
[Site "Chess.com"]
[Date "2020.06.09"]
[Round "3"]
[White "Denis_Palkovich"]
[Black "harkerchess"]
[Result "0-1"]
[WhiteElo "2300"]
[BlackElo "2027"]
[TimeControl "180+1"]
[EndTime "9:29:11 PDT"]
[Termination "harkerchess won on time"]

1. d4 {[%clk 0:03:00.9]} 1... d5 {[%clk 0:02:59.8]} 2. Bf4 {[%clk 0:03:00]} 2...
Nf6 {[%clk 0:02:58.9]} 3. e3 {[%clk 0:02:59.8]} 3... c5 {[%clk 0:02:55.8]} 4. c3
{[%clk 0:02:59.5]} 4... Nc6 {[%clk 0:02:51]} 5. Nd2 {[%clk 0:02:59.5]} 5... e6
{[%clk 0:02:49.9]} 6. Bd3 {[%clk 0:02:58.8]} 6... cxd4 {[%clk 0:02:49.6]} 7.
exd4 {[%clk 0:02:58.6]} 7... Qb6 {[%clk 0:02:45.8]} 8. Qb3 {[%clk 0:02:56.9]}
8... Qxb3 {[%clk 0:02:44.3]} 9. axb3 {[%clk 0:02:53.8]} 9... a6 {[%clk
0:02:44.2]} 10. b4 {[%clk 0:02:51.9]} 10... Nd8 {[%clk 0:02:27.9]} 11. b5 {[%clk
0:02:46.5]} 11... a5 {[%clk 0:02:27.6]} 12. b4 {[%clk 0:02:28.4]} 12... b6
{[%clk 0:02:22.9]} 13. bxa5 {[%clk 0:02:27]} 13... bxa5 {[%clk 0:02:23.8]} 14.
Ra4 {[%clk 0:02:15.4]} 14... Nh5 {[%clk 0:02:14.9]} 15. Be5 {[%clk 0:02:04.3]}
15... f6 {[%clk 0:02:13.3]} 16. Bc7 {[%clk 0:02:03.4]} 16... Nb7 {[%clk
0:02:13.2]} 17. g4 {[%clk 0:01:54.3]} 17... Bd6 {[%clk 0:02:07]} 18. Bxd6 {[%clk
0:01:52.4]} 18... Nxd6 {[%clk 0:02:07.9]} 19. gxh5 {[%clk 0:01:52.7]} 19... Bd7
{[%clk 0:02:07.8]} 20. Nb3 {[%clk 0:01:48.9]} 20... Bxb5 {[%clk 0:02:06.7]} 21.
Bxb5+ {[%clk 0:01:46.5]} 21... Nxb5 {[%clk 0:02:07.6]} 22. Rxa5 {[%clk 0:01:46]}
22... Rxa5 {[%clk 0:02:07.4]} 23. Nxa5 {[%clk 0:01:46.9]} 23... Nxc3 {[%clk
0:02:07.4]} 24. Ne2 {[%clk 0:01:43.4]} 24... Ne4 {[%clk 0:02:04.3]} 25. f3
{[%clk 0:01:37.6]} 25... Nd6 {[%clk 0:02:03.9]} 26. Kf2 {[%clk 0:01:32.6]} 26...
Nf5 {[%clk 0:02:03.8]} 27. Nb7 {[%clk 0:01:11.7]} 27... O-O {[%clk 0:02:01.6]}
28. Nc5 {[%clk 0:01:11.5]} 28... Re8 {[%clk 0:01:58.9]} 29. Rd1 {[%clk
0:00:58.3]} 29... Kf7 {[%clk 0:01:56.6]} 30. Ng3 {[%clk 0:00:57]} 30... Nd6
{[%clk 0:01:53.5]} 31. Ra1 {[%clk 0:00:53.2]} 31... Nb5 {[%clk 0:01:49.7]} 32.
Ke3 {[%clk 0:00:47.1]} 32... e5 {[%clk 0:01:48.7]} 33. Ne2 {[%clk 0:00:27.8]}
33... exd4+ {[%clk 0:01:43.7]} 34. Kd3 {[%clk 0:00:27.8]} 34... Re3+ {[%clk
0:01:42.1]} 35. Kd2 {[%clk 0:00:27.7]} 35... Rxf3 {[%clk 0:01:38.2]} 36. Ra5
{[%clk 0:00:23.8]} 36... Nd6 {[%clk 0:01:32.4]} 37. Ra7+ {[%clk 0:00:18.6]}
37... Kg8 {[%clk 0:01:25.5]} 38. Ne6 {[%clk 0:00:16.5]} 38... Ne8 {[%clk
0:01:20.1]} 39. N2xd4 {[%clk 0:00:15]} 39... Rh3 {[%clk 0:01:19.1]} 40. Nf5
{[%clk 0:00:09.9]} 40... Rxh2+ {[%clk 0:01:17.9]} 41. Kd3 {[%clk 0:00:10.2]}
41... Rxh5 {[%clk 0:01:17.8]} 42. Ne7+ {[%clk 0:00:09]} 42... Kf7 {[%clk
0:01:11.7]} 43. Nxd5+ {[%clk 0:00:08.5]} 43... Kg8 {[%clk 0:01:02.7]} 44. Ndf4
{[%clk 0:00:08.2]} 44... Rb5 {[%clk 0:00:57.6]} 45. Re7 {[%clk 0:00:07.8]} 45...
Rb8 {[%clk 0:00:55.7]} 46. Ke3 {[%clk 0:00:06.1]} 46... f5 {[%clk 0:00:45.6]}
47. Nd5 {[%clk 0:00:04.3]} 47... h6 {[%clk 0:00:36.1]} 48. Nef4 {[%clk
0:00:03.4]} 48... g5 {[%clk 0:00:33.6]} 49. Nh5 {[%clk 0:00:02.2]} 49... Rd8
{[%clk 0:00:32.2]} 50. Rxe8+ {[%clk 0:00:02]} 50... Rxe8+ {[%clk 0:00:32.9]} 0-1

[Event "*** SCC Grand Prix: Titled Tuesday Blitz"]
[Site "Chess.com"]
[Date "2020.06.09"]
[Round "3"]
[White "DortmundCity"]
[Black "obliviate12"]
[Result "0-1"]
[WhiteElo "2588"]
[BlackElo "2811"]
[TimeControl "180+1"]
[EndTime "9:29:12 PDT"]
[Termination "obliviate12 won by resignation"]

1. e4 {[%clk 0:02:57.3]} 1... c6 {[%clk 0:02:59.6]} 2. d4 {[%clk 0:02:57.1]}
2... d5 {[%clk 0:02:59.7]} 3. e5 {[%clk 0:02:57.6]} 3... c5 {[%clk 0:02:59.9]}
4. dxc5 {[%clk 0:02:56.9]} 4... e6 {[%clk 0:02:58.8]} 5. Nf3 {[%clk 0:02:50.2]}
5... Bxc5 {[%clk 0:02:58.8]} 6. Bd3 {[%clk 0:02:49.8]} 6... Ne7 {[%clk
0:02:58.4]} 7. O-O {[%clk 0:02:49.5]} 7... Ng6 {[%clk 0:02:57.2]} 8. a3 {[%clk
0:02:48.7]} 8... Qc7 {[%clk 0:02:56.4]} 9. b4 {[%clk 0:02:47.8]} 9... Be7 {[%clk
0:02:56]} 10. Bb2 {[%clk 0:02:47.7]} 10... a5 {[%clk 0:02:40.5]} 11. b5 {[%clk
0:02:25.4]} 11... Nd7 {[%clk 0:02:37.2]} 12. Re1 {[%clk 0:02:18.4]} 12... Nc5
{[%clk 0:02:35.8]} 13. a4 {[%clk 0:02:09.9]} 13... O-O {[%clk 0:02:32.1]} 14.
Nbd2 {[%clk 0:01:59.5]} 14... b6 {[%clk 0:02:10.2]} 15. Nb3 {[%clk 0:01:58.3]}
15... Bb7 {[%clk 0:01:58.2]} 16. Nxc5 {[%clk 0:01:50.8]} 16... bxc5 {[%clk
0:01:53.3]} 17. c4 {[%clk 0:01:49.2]} 17... d4 {[%clk 0:01:53.2]} 18. Be4 {[%clk
0:01:43]} 18... f6 {[%clk 0:01:16.7]} 19. Bxb7 {[%clk 0:01:14.8]} 19... Qxb7
{[%clk 0:01:17.6]} 20. exf6 {[%clk 0:01:13.7]} 20... Rxf6 {[%clk 0:01:18.5]} 21.
Ra3 {[%clk 0:01:11.1]} 21... Raf8 {[%clk 0:01:14.8]} 22. Bc1 {[%clk 0:01:11]}
22... e5 {[%clk 0:00:56.4]} 23. Bg5 {[%clk 0:00:17.6]} 23... Rxf3 {[%clk
0:00:55.2]} 24. Bxe7 {[%clk 0:00:15.5]} 24... Rxa3 {[%clk 0:00:54.3]} 25. Bxf8
{[%clk 0:00:14.3]} 25... Kxf8 {[%clk 0:00:54]} 26. Qg4 {[%clk 0:00:13]} 26... d3
{[%clk 0:00:24.3]} 27. Qg5 {[%clk 0:00:01.4]} 27... Qd7 {[%clk 0:00:20.7]} 28.
Qe3 {[%clk 0:00:01.2]} 28... Qd4 {[%clk 0:00:20.1]} 29. Qf3+ {[%clk 0:00:01.7]}
29... Nf4 {[%clk 0:00:18.9]} 30. Qa8+ {[%clk 0:00:01.8]} 30... Kf7 {[%clk
0:00:18.4]} 31. Qa7+ {[%clk 0:00:01.7]} 31... Kg6 {[%clk 0:00:18.3]} 32. Qb6+
{[%clk 0:00:01.8]} 32... Kh5 {[%clk 0:00:17.3]} 33. g4+ {[%clk 0:00:01.9]} 33...
Kxg4 {[%clk 0:00:15.3]} 34. Qb7 {[%clk 0:00:02.3]} 34... e4 {[%clk 0:00:07.6]}
35. Qd7+ {[%clk 0:00:01.4]} 35... Qxd7 {[%clk 0:00:07.1]} 0-1

[Event "*** SCC Grand Prix: Titled Tuesday Blitz"]
[Site "Chess.com"]
[Date "2020.06.09"]
[Round "3"]
[White "eCztery"]
[Black "Firegrizzly"]
[Result "1-0"]
[WhiteElo "2415"]
[BlackElo "2582"]
[TimeControl "180+1"]
[EndTime "9:29:14 PDT"]
[Termination "eCztery won by checkmate"]

1. e4 {[%clk 0:03:00.9]} 1... Nf6 {[%clk 0:03:00.9]} 2. Nc3 {[%clk 0:03:00.3]}
2... d6 {[%clk 0:02:59.6]} 3. d4 {[%clk 0:02:58.7]} 3... g6 {[%clk 0:02:59.8]}
4. f4 {[%clk 0:02:58.6]} 4... Bg7 {[%clk 0:03:00.2]} 5. Nf3 {[%clk 0:02:59]}
5... O-O {[%clk 0:03:00]} 6. Bd3 {[%clk 0:02:58.3]} 6... c5 {[%clk 0:02:55.2]}
7. dxc5 {[%clk 0:02:56.6]} 7... dxc5 {[%clk 0:02:52.5]} 8. e5 {[%clk 0:02:57.1]}
8... Nd5 {[%clk 0:02:50.8]} 9. Nxd5 {[%clk 0:02:57.7]} 9... Qxd5 {[%clk
0:02:50.4]} 10. Qe2 {[%clk 0:02:58.2]} 10... Nc6 {[%clk 0:02:41.2]} 11. O-O
{[%clk 0:02:53.4]} 11... Bf5 {[%clk 0:02:29.9]} 12. Bxf5 {[%clk 0:02:50.4]}
12... gxf5 {[%clk 0:02:30.8]} 13. Be3 {[%clk 0:02:50.8]} 13... b6 {[%clk
0:02:29.8]} 14. Ng5 {[%clk 0:02:43.9]} 14... e6 {[%clk 0:02:21.6]} 15. Rfd1
{[%clk 0:02:39.1]} 15... Nd4 {[%clk 0:02:21.7]} 16. Bxd4 {[%clk 0:02:07.4]}
16... cxd4 {[%clk 0:02:21]} 17. Nf3 {[%clk 0:02:07.4]} 17... Qe4 {[%clk
0:02:20.1]} 18. Qxe4 {[%clk 0:02:04.1]} 18... fxe4 {[%clk 0:02:21]} 19. Nxd4
{[%clk 0:02:04.7]} 19... Rac8 {[%clk 0:02:18.3]} 20. c3 {[%clk 0:02:04.8]} 20...
Rfe8 {[%clk 0:02:11.2]} 21. Kf2 {[%clk 0:02:04]} 21... f6 {[%clk 0:02:11]} 22.
exf6 {[%clk 0:01:59.6]} 22... Bxf6 {[%clk 0:02:11.9]} 23. Ke3 {[%clk 0:02:00.1]}
23... e5 {[%clk 0:02:12.2]} 24. Nf5 {[%clk 0:01:55]} 24... exf4+ {[%clk
0:02:08.6]} 25. Kxf4 {[%clk 0:01:55.9]} 25... Rc5 {[%clk 0:02:02.8]} 26. Rd7
{[%clk 0:01:47.8]} 26... a5 {[%clk 0:01:46.1]} 27. Re1 {[%clk 0:01:42.1]} 27...
e3 {[%clk 0:01:33.5]} 28. Rxe3 {[%clk 0:01:04.2]} 28... Bg5+ {[%clk 0:01:32.5]}
29. Kxg5 {[%clk 0:01:04.7]} 29... Rxe3 {[%clk 0:01:32.4]} 30. Kf6 {[%clk
0:01:00.4]} 30... Rc6+ {[%clk 0:01:31.4]} 31. Kg5 {[%clk 0:00:50.3]} 31... Rg6+
{[%clk 0:01:24.8]} 32. Kf4 {[%clk 0:00:48.9]} 32... Re2 {[%clk 0:01:14.4]} 33.
Ne7+ {[%clk 0:00:47.5]} 33... Kf7 {[%clk 0:01:14.6]} 34. Nxg6+ {[%clk 0:00:46]}
34... Kxg6 {[%clk 0:01:15.5]} 35. Rd6+ {[%clk 0:00:43.5]} 35... Kf7 {[%clk
0:01:14.5]} 36. Rxb6 {[%clk 0:00:43.8]} 36... a4 {[%clk 0:01:13.6]} 37. g4
{[%clk 0:00:41.7]} 37... Rxh2 {[%clk 0:01:11]} 38. Kg5 {[%clk 0:00:37.7]} 38...
a3 {[%clk 0:01:08.9]} 39. bxa3 {[%clk 0:00:36.4]} 39... Rxa2 {[%clk 0:01:08.4]}
40. Rb7+ {[%clk 0:00:35.3]} 40... Kg8 {[%clk 0:01:07.9]} 41. c4 {[%clk
0:00:26.3]} 41... Rxa3 {[%clk 0:01:07.2]} 42. c5 {[%clk 0:00:26.6]} 42... Rc3
{[%clk 0:00:54.5]} 43. Rc7 {[%clk 0:00:26]} 43... Rc4 {[%clk 0:00:51.8]} 44. Kf5
{[%clk 0:00:23.9]} 44... h6 {[%clk 0:00:50.5]} 45. c6 {[%clk 0:00:23.2]} 45...
Kf8 {[%clk 0:00:44.5]} 46. Ke5 {[%clk 0:00:18.8]} 46... Rxg4 {[%clk 0:00:43.1]}
47. Rh7 {[%clk 0:00:18.5]} 47... Rc4 {[%clk 0:00:37.2]} 48. c7 {[%clk
0:00:13.7]} 48... Kg8 {[%clk 0:00:35.7]} 49. Rd7 {[%clk 0:00:13.9]} 49... h5
{[%clk 0:00:35]} 50. Rd8+ {[%clk 0:00:13.9]} 50... Kg7 {[%clk 0:00:35.7]} 51.
c8=Q {[%clk 0:00:14.8]} 51... Rxc8 {[%clk 0:00:35.7]} 52. Rxc8 {[%clk
0:00:14.7]} 52... Kg6 {[%clk 0:00:36.6]} 53. Kf4 {[%clk 0:00:15]} 53... h4
{[%clk 0:00:36.2]} 54. Kg4 {[%clk 0:00:15.9]} 54... Kf6 {[%clk 0:00:37]} 55.
Kxh4 {[%clk 0:00:16]} 55... Ke5 {[%clk 0:00:37.9]} 56. Rg8 {[%clk 0:00:16.4]}
56... Ke4 {[%clk 0:00:38.8]} 57. Rg5 {[%clk 0:00:17.3]} 57... Ke3 {[%clk
0:00:39]} 58. Kg4 {[%clk 0:00:17.6]} 58... Kf2 {[%clk 0:00:39.2]} 59. Rf5+
{[%clk 0:00:18.5]} 59... Kg2 {[%clk 0:00:40]} 60. Rf3 {[%clk 0:00:19]} 60... Kh2
{[%clk 0:00:40.9]} 61. Rf2+ {[%clk 0:00:18.7]} 61... Kg1 {[%clk 0:00:40.8]} 62.
Kg3 {[%clk 0:00:19.6]} 62... Kh1 {[%clk 0:00:41.6]} 63. Rf1# {[%clk 0:00:20]}
1-0